bitfinex-derivatives/quotes_ETHF0:USTF0_20260118
["timestamp","ask_amount","ask_price","bid_price","bid_amount"]
[1768723355065,1.04444618,3306.7,3305.8,0.00240581]
[1768723355268,1.04444618,3306.6,3305.8,0.00240581]
[1768723355457,0.13785633,3306.9,3305.8,0.00240581]
[1768723355656,1.44804196,3306.8,3305.8,0.00240581]
[1768723355859,1.04441807,3306.7,3305.8,0.00240581]
[1768723356059,1.04441807,3306.6,3305.8,0.00240581]
[1768723356370,0.13785633,3306.9,3305.8,0.00240581]
[1768723356669,1.448004,3306.8,3305.8,0.00240581]
[1768723356971,1.04439066,3306.7,3305.8,0.00240581]
[1768723357163,1.04439066,3306.6,3305.8,0.00240581]
[1768723357462,0.13785633,3306.9,3305.8,0.00240581]
[1768723357761,1.59014857,3306.8,3305.8,0.00240581]
[1768723357960,1.04437062,3306.7,3305.8,0.00240581]
[1768723360373,1.7738441,3307.3,3306.1,0.9760892]
[1768723360670,0.40358906,3307.2,3306.1,0.9760892]
[1768723360869,0.40358906,3307.1,3306.1,0.9760892]
[1768723361070,1.7738441,3307.3,3306.1,0.9760892]
[1768723361271,0.38727802,3307.2,3306.1,0.9760892]
[1768723361471,0.38727802,3307.1,3306.1,0.9760892]
[1768723361674,1.7738441,3307.3,3306.1,0.9760892]
[1768723361869,0.38727598,3307.2,3306.1,0.9760892]
[1768723362171,0.38727598,3307.1,3306.1,0.9760892]
[1768723362371,1.7738441,3307.3,3306.1,0.9760892]
[1768723362570,0.38210362,3307.2,3306.1,0.9760892]
[1768723362772,0.38210362,3307.1,3306.1,0.9760892]
[1768723362975,1.7738441,3307.3,3306.1,0.9760892]
[1768723363166,0.38210489,3307.2,3306.1,0.9760892]
[1768723363365,0.38210489,3307.1,3306.1,0.9760892]
[1768723363565,1.7738441,3307.3,3306.1,0.9760892]
[1768723363764,0.3821089,3307.2,3306.1,0.9760892]
[1768723363965,0.3821089,3307.1,3306.1,0.9760892]
[1768723364175,1.7738441,3307.3,3306.1,0.9760892]
[1768723364372,0.38211546,3307.2,3306.1,0.9760892]
[1768723364670,0.38211546,3307.1,3306.1,0.9760892]
[1768723364875,1.7738441,3307.3,3306.1,0.9760892]
[1768723365074,0.38211542,3307.2,3306.1,0.9760892]
[1768723365276,0.38211542,3307.1,3306.1,0.9760892]
[1768723365475,1.7738441,3307.3,3306.1,0.9760892]
[1768723365676,0.3821254,3307.2,3306.1,0.9760892]
[1768723365876,0.3821254,3307.1,3306.1,0.9760892]
[1768723366176,1.7738441,3307.3,3306.1,0.9760892]
[1768723366375,0.38213711,3307.2,3306.1,0.9760892]
[1768723366586,0.38213711,3307.1,3306.1,0.9760892]
[1768723366888,1.7738441,3307.3,3306.1,0.9760892]
[1768723367085,0.3821374,3307.2,3306.1,0.9760892]
[1768723367286,0.3821374,3307.1,3306.1,0.9760892]
[1768723367488,1.7738441,3307.3,3306.1,0.9760892]
[1768723367687,0.38216224,3307.2,3306.1,0.9760892]
[1768723367987,0.38216224,3307.1,3306.1,0.9760892]
[1768723368187,1.7738441,3307.3,3306.1,0.9760892]
[1768723368389,0.38222168,3307.2,3306.1,0.9760892]
[1768723368589,0.38222168,3307.1,3306.1,0.9760892]
[1768723368790,1.7738441,3307.3,3306.1,0.9760892]
[1768723368990,0.38224322,3307.2,3306.1,0.9760892]
[1768723369191,0.38224322,3307.1,3306.1,0.9760892]
[1768723369381,1.7738441,3307.3,3306.1,0.9760892]
[1768723369583,0.38225829,3307.2,3306.1,0.9760892]
[1768723369783,0.38225829,3307.1,3306.1,0.9760892]
[1768723370080,1.7738441,3307.3,3306.1,0.9760892]
[1768723370282,0.38225831,3307.2,3306.1,0.9760892]
[1768723370482,0.38225831,3307.1,3306.1,0.9760892]
[1768723370793,1.7738441,3307.3,3306.1,0.9760892]
[1768723370993,0.38227525,3307.2,3306.1,0.9760892]
[1768723371190,0.38227525,3307.1,3306.1,0.9760892]
[1768723371396,1.63167176,3307.2,3305.8,0.00240581]
[1768723371593,0.38229488,3307.1,3305.8,0.00240581]
[1768723371797,1.63167176,3307.2,3305.8,0.00240581]
[1768723371998,0.38229478,3307.1,3305.8,0.00240581]
[1768723372199,1.42286705,3307.0,3305.8,0.00240581]
[1768723372497,1.04055124,3306.9,3305.8,0.00240581]
[1768723372689,1.04055124,3306.8,3305.8,0.00240581]
[1768723372888,1.04055124,3306.7,3305.8,0.00240581]
[1768723373088,1.63167176,3307.2,3305.8,0.00240581]
[1768723373288,1.42293179,3307.1,3305.8,0.00240581]
[1768723373490,1.42293179,3307.0,3305.8,0.00240581]
[1768723373784,1.04061591,3306.9,3305.8,0.00240581]
[1768723373988,1.04061591,3306.8,3305.8,0.00240581]
[1768723374191,1.04061591,3306.7,3305.8,0.00240581]
[1768723374390,1.63167176,3307.2,3305.8,0.00240581]
[1768723374591,1.4244286,3307.1,3305.8,0.00240581]
[1768723374790,1.4244286,3307.0,3305.8,0.00240581]
[1768723374990,1.0420617,3306.9,3305.8,0.00240581]
[1768723375192,1.0420617,3306.8,3305.8,0.00240581]
[1768723375491,1.0420617,3306.7,3305.8,0.00240581]
[1768723375690,1.63167176,3307.2,3305.8,0.00240581]
[1768723375892,1.42454811,3307.1,3305.8,0.00240581]
[1768723376089,1.42454811,3307.0,3305.8,0.00240581]
[1768723376290,1.04214908,3306.9,3305.8,0.00240581]
[1768723376600,1.04214908,3306.8,3305.8,0.00240581]
[1768723376897,1.04214908,3306.7,3305.8,0.00240581]
[1768723377094,1.04214908,3306.6,3305.8,0.00240581]
[1768723377401,1.63167176,3307.2,3305.8,0.00240581]
[1768723377601,1.41962577,3307.1,3305.8,0.00240581]
[1768723377799,1.41962577,3307.0,3305.8,0.00240581]
[1768723377999,1.04238339,3306.9,3305.8,0.00240581]
[1768723378299,1.04238339,3306.8,3305.8,0.00240581]
[1768723378496,1.04238339,3306.7,3305.8,0.00240581]
[1768723378701,1.63167176,3307.2,3305.8,0.00240581]
[1768723378898,0.37729964,3307.1,3305.8,0.00240581]
[1768723379198,0.37729964,3307.0,3305.8,0.00240581]
[1768723379398,1.63167176,3307.2,3305.8,0.00240581]
[1768723379698,0.37729836,3307.1,3305.8,0.00240581]
[1768723379899,0.37729836,3307.0,3305.8,0.00240581]
[1768723380102,1.63167176,3307.2,3305.8,0.00240581]
[1768723380399,0.37729982,3307.1,3305.8,0.00240581]
[1768723380591,0.37729982,3307.0,3305.8,0.00240581]
[1768723380795,1.76962803,3307.2,3305.8,0.00240581]
[1768723380998,0.37730206,3307.1,3305.8,0.00240581]
[1768723381197,0.37730206,3307.0,3305.8,0.00240581]
[1768723381495,1.76962803,3307.2,3305.8,0.00240581]
[1768723381695,0.37730584,3307.1,3305.8,0.00240581]
[1768723381896,0.37730584,3307.0,3305.8,0.00240581]
[1768723382198,1.76962803,3307.2,3305.8,0.00240581]
[1768723382397,0.37731082,3307.1,3305.8,0.00240581]
[1768723382701,0.37731082,3307.0,3305.8,0.00240581]
[1768723382899,1.76962803,3307.2,3305.8,0.00240581]
[1768723383098,0.3773092,3307.1,3305.8,0.00240581]
[1768723383302,0.3773092,3307.0,3305.8,0.00240581]
[1768723383599,1.76962803,3307.2,3305.8,0.00240581]
[1768723383800,0.3773153,3307.1,3305.8,0.00240581]
[1768723384002,0.37731532,3307.0,3305.8,0.00240581]
[1768723384200,1.76962803,3307.2,3305.8,0.00240581]
[1768723384394,0.37732419,3307.1,3305.8,0.00240581]
[1768723384594,0.37732419,3307.0,3305.8,0.00240581]
[1768723384791,1.76962803,3307.2,3305.8,0.00240581]
[1768723384993,0.37732414,3307.1,3305.8,0.00240581]
[1768723385194,0.37732414,3307.0,3305.8,0.00240581]
[1768723385496,1.76962803,3307.2,3305.8,0.00240581]
[1768723385696,0.37733372,3307.1,3305.8,0.00240581]
[1768723385896,0.37733372,3307.0,3305.8,0.00240581]
[1768723386099,1.76962803,3307.2,3305.8,0.00240581]
[1768723386299,0.37733309,3307.1,3305.8,0.00240581]
[1768723386500,0.37733309,3307.0,3305.8,0.00240581]
[1768723386695,0.13795627,3307.1,3305.8,0.00240581]
[1768723386906,0.3773459,3307.0,3305.8,0.00240581]
[1768723387207,0.13795627,3307.1,3305.8,0.00240581]
[1768723387409,0.37736069,3307.0,3305.8,0.00240581]
[1768723387598,0.13795627,3307.1,3305.8,0.00240581]
[1768723387798,0.37736068,3307.0,3305.8,0.00240581]
[1768723388003,0.13795627,3307.1,3305.8,0.00240581]
[1768723388200,0.3773604,3307.0,3305.8,0.00240581]
[1768723388499,0.13795627,3307.1,3305.8,0.00240581]
[1768723388699,0.3773795,3307.0,3305.8,0.00240581]
[1768723388900,0.13795627,3307.1,3305.8,0.00240581]
[1768723389198,0.3773795,3307.0,3305.8,0.00240581]
[1768723389401,0.13795627,3307.1,3305.8,0.00240581]
[1768723389601,0.37740672,3307.0,3305.8,0.00240581]
[1768723389804,0.13795627,3307.1,3305.8,0.00240581]
[1768723390006,0.37740721,3307.0,3305.8,0.00240581]
[1768723390305,0.13795627,3307.1,3305.8,0.00240581]
[1768723390507,0.37746344,3307.0,3305.8,0.00240581]
[1768723390805,1.03847921,3306.9,3305.8,0.00240581]
[1768723390998,1.03847921,3306.8,3305.9,1.935]
[1768723391199,0.13795627,3307.1,3305.9,1.935]
[1768723391400,0.37746324,3307.0,3305.9,1.935]
[1768723391606,0.13795627,3307.1,3305.9,1.935]
[1768723391807,0.37745814,3307.0,3305.9,1.935]
[1768723392010,0.13795627,3307.1,3305.9,1.935]
[1768723392203,0.37745819,3307.0,3306.1,0.9760892]
[1768723392502,0.13795627,3307.1,3306.1,0.9760892]
[1768723392703,0.37221088,3307.0,3306.1,0.9760892]
[1768723392903,0.13795627,3307.1,3306.1,0.9760892]
[1768723393105,0.37221061,3307.0,3306.1,0.9760892]
[1768723393305,0.13795627,3307.1,3306.1,0.9760892]
[1768723393505,0.37221085,3307.0,3306.1,0.9760892]
[1768723393706,0.13795627,3307.1,3306.1,0.9760892]
[1768723394004,0.37221085,3307.0,3306.1,0.9760892]
[1768723394205,0.13795627,3307.1,3306.1,0.9760892]
[1768723394502,0.37221122,3307.0,3306.1,0.9760892]
[1768723394704,0.13795627,3307.1,3306.1,0.9760892]
[1768723394903,0.37221122,3307.0,3306.1,0.9760892]
[1768723395108,0.13795627,3307.1,3306.1,0.9760892]
[1768723395407,0.37221197,3307.0,3306.1,0.9760892]
[1768723395607,0.13795627,3307.1,3306.1,0.9760892]
[1768723395812,0.37221156,3307.0,3306.1,0.9760892]
[1768723395996,0.13795627,3307.1,3306.1,0.9760892]
[1768723396202,0.37221155,3307.0,3306.1,0.9760892]
[1768723396403,0.13795627,3307.1,3306.1,0.9760892]
[1768723396701,0.37221244,3307.0,3306.1,0.9760892]
[1768723397000,0.13795627,3307.1,3306.1,0.9760892]
[1768723397197,0.37221225,3307.0,3306.1,0.9760892]
[1768723397501,0.13795627,3307.1,3306.5,0.97617914]
[1768723397701,0.51016836,3307.0,3306.5,0.97617914]
[1768723397902,0.13795627,3307.0,3306.5,0.97617914]
[1768723398908,0.13795627,3307.0,3305.9,1.935]
[1768723399107,0.13795627,3307.0,3306.4,0.97617914]
[1768723400114,0.13795627,3307.0,3305.9,1.935]
[1768723400413,0.13795627,3307.0,3306.4,0.97617914]
[1768723403116,0.13795627,3307.0,3306.2,0.97617914]
[1768723403415,0.13694611,3306.8,3305.9,1.935]
[1768723403615,1.17072518,3306.7,3305.9,1.935]
[1768723403809,1.03377907,3306.6,3305.9,1.935]
[1768723404016,0.13694611,3306.7,3305.8,0.97858495]
[1768723404208,1.02361871,3306.6,3305.8,0.97858495]
[1768723404403,0.13694611,3306.7,3305.8,0.97858495]
[1768723404609,1.02361239,3306.6,3305.8,0.00240581]
[1768723404815,1.02361239,3306.5,3305.8,0.00240581]
[1768723405016,0.13694611,3306.7,3305.8,0.00240581]
[1768723405316,1.02358934,3306.6,3305.8,0.00240581]
[1768723405518,0.13694611,3306.7,3305.8,0.00240581]
[1768723405814,1.02342919,3306.6,3305.8,0.00240581]
[1768723406010,0.13694611,3306.7,3305.8,0.00240581]
[1768723406216,0.13694611,3306.5,3305.8,0.00240581]
[1768723407617,0.13694611,3306.5,3305.8,0.00106748]
[1768723411220,1.02294816,3306.4,3305.8,0.00106748]
[1768723411523,0.13694611,3306.5,3305.8,0.00106748]
[1768723411722,1.02276219,3306.4,3305.8,0.00106748]
[1768723411923,0.13694611,3306.5,3305.8,0.00106748]
[1768723412124,1.02276342,3306.4,3305.8,0.00106748]
[1768723412323,0.13694611,3306.5,3305.8,0.00106748]
[1768723412622,1.02262476,3306.4,3305.8,0.00106748]
[1768723412819,0.13694611,3306.5,3305.8,0.00106748]
[1768723413021,1.02262616,3306.4,3305.8,0.00106748]
[1768723413324,0.13694611,3306.5,3305.8,0.00106748]
[1768723413511,1.02251474,3306.4,3305.8,0.97724662]
[1768723413715,0.13694611,3306.5,3305.8,0.97724662]
[1768723413924,1.0225176,3306.4,3305.8,0.97724662]
[1768723414128,0.13694611,3306.5,3305.8,0.97724662]
[1768723415822,0.13627735,3306.9,3306.0,0.97617914]
[1768723416022,1.39399644,3306.8,3306.0,0.97617914]
[1768723416224,1.02236242,3306.7,3306.0,0.97617914]
[1768723416414,1.02236242,3306.6,3306.0,0.97617914]
[1768723416617,1.02236242,3306.5,3306.0,0.97617914]
[1768723416817,0.13627735,3306.9,3306.0,0.97617914]
[1768723417019,1.39391772,3306.8,3306.0,0.97617914]
[1768723417326,1.02230446,3306.7,3306.0,0.97617914]
[1768723417523,1.02230446,3306.6,3306.0,0.97617914]
[1768723417727,1.63167176,3307.2,3306.2,0.97617914]
[1768723417929,1.39392754,3307.1,3306.2,0.97617914]
[1768723418130,1.39392754,3307.0,3306.2,0.97617914]
[1768723418325,1.02231214,3306.9,3306.2,0.97617914]
[1768723418531,1.02231214,3306.8,3305.8,0.00106748]
[1768723418835,1.02231214,3306.7,3305.8,0.97724662]
[1768723419137,1.02233943,3306.6,3305.8,0.97724662]
[1768723419434,0.13627735,3307.0,3305.8,0.97724662]
[1768723419734,1.02235456,3306.9,3305.8,0.97724662]
[1768723419935,1.02235456,3306.8,3305.8,0.97724662]
[1768723420132,1.02235456,3306.7,3305.8,0.97724662]
[1768723420431,1.02235456,3306.6,3306.0,0.97617914]
[1768723420635,0.13627735,3307.0,3306.0,0.97617914]
[1768723420836,1.02239943,3306.9,3306.0,0.97617914]
[1768723421037,1.02239943,3306.8,3306.0,0.97617914]
[1768723421235,1.02239943,3306.7,3305.8,0.00106748]
[1768723421435,0.13627735,3306.9,3305.8,0.97724662]
[1768723421636,1.0224208,3306.8,3305.8,0.97724662]
[1768723421936,1.0224208,3306.7,3305.8,0.97724662]
[1768723422134,0.13627735,3306.9,3305.8,0.97724662]
[1768723422335,1.02244509,3306.8,3305.8,0.97724662]
[1768723422633,1.02244509,3306.7,3305.8,0.97724662]
[1768723422842,0.13627735,3306.9,3305.8,0.97724662]
[1768723423044,1.02244517,3306.8,3305.8,0.97724662]
[1768723423243,1.02244517,3306.7,3305.8,0.97724662]
[1768723423444,0.13627735,3306.9,3305.8,0.97724662]
[1768723423639,1.02247238,3306.8,3305.8,0.97724662]
[1768723423839,1.02247238,3306.7,3305.9,0.97617914]
[1768723424039,0.13627735,3306.9,3305.9,0.97617914]
[1768723424240,1.02250168,3306.8,3305.9,0.97617914]
[1768723424535,1.02250168,3306.7,3305.9,0.97617914]
[1768723424734,0.13627735,3306.9,3305.9,0.97617914]
[1768723425037,1.02250168,3306.8,3305.9,0.97617914]
[1768723425237,0.13627735,3306.9,3305.9,0.97617914]
[1768723425238,1.02250168,3306.7,3305.9,0.97617914]
[1768723425449,0.13627735,3306.9,3305.9,0.97617914]
[1768723425749,1.02253341,3306.8,3305.9,0.97617914]
[1768723426048,1.02253341,3306.7,3305.9,0.97617914]
[1768723426248,0.13627735,3306.9,3305.8,0.00106748]
[1768723426548,1.02256612,3306.8,3305.9,0.97617914]
[1768723426739,1.02256612,3306.7,3305.9,0.97617914]
[1768723426944,0.13627735,3306.9,3305.9,0.97617914]
[1768723427145,1.02256645,3306.8,3305.9,0.97617914]
[1768723427345,1.02256645,3306.7,3305.9,0.97617914]
[1768723427545,0.13627735,3306.9,3305.9,0.97617914]
[1768723427750,1.02260494,3306.8,3305.9,0.97617914]
[1768723427948,1.02260494,3306.7,3305.9,0.97617914]
[1768723428148,0.13627735,3306.9,3305.9,0.97617914]
[1768723428350,1.02260956,3306.8,3305.9,0.97617914]
[1768723428648,1.02260956,3306.7,3305.9,0.97617914]
[1768723428851,0.13627735,3306.9,3305.9,0.97617914]
[1768723429049,1.02260655,3306.8,3305.9,0.97617914]
[1768723429250,1.02260655,3306.7,3305.9,0.97617914]
[1768723429452,0.13627735,3306.9,3305.9,0.97617914]
[1768723429752,1.02264944,3306.8,3305.9,0.97617914]
[1768723429943,1.02264944,3306.7,3305.9,0.97617914]
[1768723430145,0.13627735,3306.9,3305.9,0.97617914]
[1768723430346,1.02269574,3306.8,3305.9,0.97617914]
[1768723430550,0.13627735,3306.6,3305.8,0.00106748]
[1768723440859,0.13627735,3306.6,3305.5,0.97617914]
[1768723440860,0.13627735,3306.6,3305.4,0.006051]
[1768723441065,0.13059419,3306.2,3305.4,0.006051]
[1768723441549,1.10677333,3305.9,3304.6,0.15135]
[1768723441947,1.10677333,3305.7,3304.6,0.0025622]
[1768723442153,1.01853156,3305.6,3304.6,0.0025622]
[1768723442457,0.13320715,3305.7,3304.6,0.0025622]
[1768723444661,0.13320715,3305.7,3304.6,0.97874134]
[1768723445762,0.13320715,3305.7,3304.6,0.0025622]
[1768723446060,0.13320715,3305.7,3304.6,0.97874134]
[1768723447755,0.13320715,3305.7,3304.8,0.97617914]
[1768723447756,0.00261296,3305.7,3304.8,0.97617914]
[1768723447956,0.00261296,3305.7,3305.2,0.97617914]
[1768723451164,0.00261296,3305.7,3304.7,0.13835083]
[1768723451357,0.00261296,3305.7,3305.1,0.97617914]
[1768723452562,0.13059419,3306.6,3305.3,0.97617914]
[1768723452862,1.01527204,3306.5,3305.3,0.97617914]
[1768723453163,1.01527204,3306.4,3305.3,0.97617914]
[1768723453364,1.01527204,3306.3,3305.5,0.97617914]
[1768723453662,1.01527204,3306.2,3305.5,0.97617914]
[1768723453861,1.01527204,3306.2,3305.3,0.97617914]
[1768723459364,1.01527204,3306.2,3305.1,0.13835083]
[1768723478083,1.01527204,3306.2,3305.0,0.146]
[1768723493314,0.13363139,3306.1,3305.0,0.146]
[1768723495818,1.01818425,3306.0,3305.0,0.146]
[1768723496008,0.13363139,3306.1,3305.0,0.146]
[1768723496211,1.01818435,3306.0,3305.0,0.146]
[1768723496517,0.13363139,3306.1,3305.0,0.146]
[1768723496717,1.01835556,3306.0,3305.0,0.146]
[1768723496919,0.13363139,3306.1,3305.0,0.146]
[1768723497106,1.0183555,3306.0,3305.0,0.146]
[1768723497308,0.13363139,3306.1,3305.0,0.146]
[1768723497505,1.01836228,3306.0,3305.0,0.146]
[1768723497705,0.13363139,3306.1,3305.0,0.146]
[1768723497920,1.01836252,3306.0,3305.0,0.146]
[1768723498122,0.13363139,3306.1,3305.0,0.146]
[1768723498312,1.0183679,3306.0,3305.0,0.146]
[1768723498512,0.13363139,3306.1,3305.0,0.146]
[1768723498713,1.01836889,3306.0,3305.0,0.146]
[1768723498912,0.13363139,3306.1,3305.0,0.146]
[1768723499115,1.01836942,3306.0,3305.0,0.146]
[1768723499317,0.13363139,3306.1,3305.0,0.146]
[1768723499515,1.01837742,3306.0,3305.0,0.146]
[1768723499722,0.13363139,3306.1,3305.0,0.146]
[1768723499916,1.01837738,3306.0,3305.0,0.146]
[1768723500118,0.13363139,3306.1,3305.0,0.146]
[1768723500326,0.13363139,3305.9,3304.9,0.15134]
[1768723511929,0.13363139,3305.9,3304.6,0.1485622]
[1768723521335,0.13363139,3305.9,3305.0,0.9769457]
[1768723529944,0.14548668,3306.3,3305.0,0.9769457]
[1768723530145,1.01806956,3306.2,3305.0,0.9769457]
[1768723530443,1.01806956,3306.1,3305.2,0.9769457]
[1768723530640,1.01806956,3306.0,3304.6,0.43012815]
[1768723530841,1.01806956,3305.9,3305.2,0.9769457]
[1768723531042,0.14548668,3306.3,3305.2,0.9769457]
[1768723531343,1.018076,3306.2,3305.2,0.9769457]
[1768723531542,1.018076,3306.1,3305.2,0.9769457]
[1768723531745,1.018076,3306.0,3305.2,0.9769457]
[1768723532042,1.018076,3305.9,3305.2,0.9769457]
[1768723532243,0.14548668,3306.3,3305.2,0.9769457]
[1768723532544,1.01811086,3306.2,3305.2,0.9769457]
[1768723532743,1.01811086,3306.1,3305.2,0.9769457]
[1768723532929,1.01811086,3306.0,3305.2,0.9769457]
[1768723533134,1.01811086,3305.9,3305.2,0.9769457]
[1768723533337,0.14548668,3306.3,3305.2,0.9769457]
[1768723533537,1.16140771,3306.2,3305.2,0.9769457]
[1768723533836,1.01813311,3306.1,3305.2,0.9769457]
[1768723535649,1.01813311,3306.1,3305.1,0.9769457]
[1768723541451,1.01813311,3306.1,3304.7,0.15135]
[1768723541650,1.01813311,3306.1,3304.9,0.9769457]
[1768723550059,1.01813311,3306.1,3304.7,0.15135]
[1768723550260,1.01813311,3306.1,3304.8,0.9769457]
[1768723552460,1.01813311,3306.1,3305.0,0.9769457]
[1768723563757,1.01813311,3306.1,3305.2,0.9769457]
[1768723564666,1.01813311,3306.0,3305.2,0.9769457]
[1768723564868,1.01813311,3305.9,3305.2,0.9769457]
[1768723565066,0.00221208,3306.3,3305.2,0.9769457]
[1768723565267,1.0190743,3306.2,3305.2,0.9769457]
[1768723565565,1.0190743,3306.1,3305.2,0.9769457]
[1768723565866,1.0190743,3306.0,3305.2,0.9769457]
[1768723566068,1.0190743,3305.9,3305.2,0.9769457]
[1768723566368,0.00221208,3306.3,3305.2,0.9769457]
[1768723566560,1.01907702,3306.2,3305.2,0.9769457]
[1768723566760,1.01907702,3306.1,3305.2,0.9769457]
[1768723566963,1.01907702,3306.0,3305.2,0.9769457]
[1768723567169,1.01907702,3305.9,3305.2,0.9769457]
[1768723567367,0.00221208,3306.3,3305.2,0.9769457]
[1768723567669,1.01907728,3306.2,3305.2,0.9769457]
[1768723567866,1.01907728,3306.1,3305.2,0.9769457]
[1768723568068,1.01907728,3306.0,3305.2,0.9769457]
[1768723568261,1.01907728,3305.9,3305.2,0.9769457]
[1768723568572,0.00221208,3306.3,3305.2,0.9769457]
[1768723568868,1.01907578,3306.2,3305.2,0.9769457]
[1768723569068,1.01907578,3306.1,3305.2,0.9769457]
[1768723569266,1.01907578,3306.0,3305.2,0.9769457]
[1768723569469,1.01907578,3305.9,3305.2,0.9769457]
[1768723569766,0.00221208,3306.3,3305.2,0.9769457]
[1768723569969,1.0191227,3306.2,3305.2,0.9769457]
[1768723570271,1.0191227,3306.1,3305.2,0.9769457]
[1768723570471,1.0191227,3306.0,3305.2,0.9769457]
[1768723570673,1.0191227,3305.9,3305.2,0.9769457]
[1768723570872,0.00221208,3306.3,3305.2,0.9769457]
[1768723571175,1.01912774,3306.2,3305.2,0.9769457]
[1768723571371,1.01912774,3306.1,3305.2,0.9769457]
[1768723571668,1.01912774,3306.0,3305.2,0.9769457]
[1768723571869,1.01912774,3305.9,3305.2,0.9769457]
[1768723572070,0.00221208,3306.3,3305.2,0.9769457]
[1768723572370,1.01903394,3306.2,3305.2,0.9769457]
[1768723572570,1.01903394,3306.1,3305.2,0.9769457]
[1768723572883,1.01903394,3306.0,3305.2,0.9769457]
[1768723573172,1.01903394,3305.9,3305.2,0.9769457]
[1768723573372,0.00221208,3306.3,3305.2,0.9769457]
[1768723573674,1.01900383,3306.2,3305.2,0.9769457]
[1768723573867,1.01900383,3306.1,3305.2,0.9769457]
[1768723574066,1.01900383,3306.0,3305.2,0.9769457]
[1768723574265,0.00221208,3306.3,3305.2,0.9769457]
[1768723574266,1.01900383,3305.9,3305.2,0.9769457]
[1768723574474,0.00221208,3306.3,3305.5,0.9769457]
[1768723577278,0.00221208,3306.3,3305.6,0.9769457]
[1768723581284,0.00221208,3306.3,3305.1,1.40830574]
[1768723581885,0.00221208,3306.3,3305.2,0.13435234]
[1768723582176,1.63167176,3307.1,3305.5,1.1279334]
[1768723582580,1.76305632,3307.2,3305.5,1.1279334]
[1768723582779,0.3503992,3307.1,3305.5,1.1279334]
[1768723582975,1.76305632,3307.2,3305.5,1.1279334]
[1768723583188,0.35039914,3307.1,3305.5,1.1279334]
[1768723583375,1.76680828,3307.2,3305.5,1.25874692]
[1768723583576,1.76680828,3307.2,3305.6,0.13081352]
[1768723583777,0.13513652,3307.2,3305.6,0.13081352]
[1768723585377,0.13513652,3307.2,3305.7,0.13081352]
[1768723586586,1.00927592,3307.1,3305.7,0.13081352]
[1768723586782,1.00927592,3307.0,3305.7,0.13081352]
[1768723586982,1.00927592,3306.9,3305.7,0.13081352]
[1768723587183,0.13513652,3307.2,3305.7,0.13081352]
[1768723587383,1.0090361,3307.1,3305.7,0.13081352]
[1768723587583,1.0090361,3307.0,3305.7,0.13081352]
[1768723587784,0.13513652,3307.2,3305.7,0.13081352]
[1768723588084,1.00903612,3307.1,3305.7,0.13081352]
[1768723588284,0.13513652,3307.2,3305.7,0.13081352]
[1768723588285,1.00903612,3307.0,3305.7,0.13081352]
[1768723588487,0.13513652,3307.2,3305.7,0.13081352]
[1768723588687,1.00883711,3307.1,3305.7,0.13081352]
[1768723588888,1.00883711,3307.0,3305.7,0.13081352]
[1768723589192,0.13513652,3307.2,3305.7,0.13081352]
[1768723589390,1.00867517,3307.1,3305.7,0.13081352]
[1768723589691,1.00867517,3307.0,3305.7,0.13081352]
[1768723589882,0.13513652,3307.2,3305.7,0.13081352]
[1768723590083,1.00867518,3307.1,3305.7,0.13081352]
[1768723590284,1.00867518,3307.0,3305.7,0.13081352]
[1768723590480,0.13513652,3307.2,3305.7,0.13081352]
[1768723590683,1.00856661,3307.1,3305.7,0.13081352]
[1768723590882,1.00856661,3307.0,3305.7,0.13081352]
[1768723591089,0.13513652,3307.2,3305.7,0.27681352]
[1768723591290,1.00847939,3307.1,3305.7,0.27681352]
[1768723591490,1.00847939,3307.0,3305.7,0.27681352]
[1768723591692,0.13513652,3307.2,3305.7,0.27681352]
[1768723591895,1.00846841,3307.1,3305.7,0.27681352]
[1768723592084,1.00846841,3307.0,3305.9,0.9766234]
[1768723592394,0.13513652,3307.2,3305.9,0.9766234]
[1768723592592,1.00837682,3307.1,3305.9,0.9766234]
[1768723592900,0.13513652,3307.2,3305.9,0.9766234]
[1768723593789,0.00375196,3307.2,3305.9,0.9766234]
[1768723595495,0.00375196,3307.2,3305.9,1.11968875]
[1768723598191,0.00375196,3307.2,3305.8,0.2973]
[1768723598391,0.13423382,3307.2,3305.8,0.2973]
[1768723598596,0.13048186,3307.0,3305.8,0.2973]
[1768723600192,0.13048186,3307.0,3305.8,0.146]
[1768723600397,0.13048186,3306.8,3305.8,0.146]
[1768723602802,0.13048186,3306.8,3305.3,1.935]
[1768723607599,0.13423382,3307.2,3305.4,1.11968875]
[1768723607799,1.00876135,3307.1,3305.8,0.9766234]
[1768723608105,1.00876135,3307.0,3305.8,0.9766234]
[1768723608293,1.00876135,3306.9,3305.8,0.9766234]
[1768723608491,1.00876135,3306.8,3305.8,0.9766234]
[1768723608695,0.13423382,3307.2,3305.8,0.9766234]
[1768723608903,1.00895847,3307.1,3305.8,0.9766234]
[1768723609201,1.00895847,3307.0,3305.8,0.9766234]
[1768723609402,1.00895847,3306.9,3305.8,0.9766234]
[1768723609601,1.00895847,3306.8,3305.8,0.9766234]
[1768723609794,0.13423382,3307.2,3305.8,0.9766234]
[1768723609995,1.00917448,3307.1,3305.8,0.9766234]
[1768723610195,1.00917448,3307.0,3305.8,0.9766234]
[1768723610396,1.00917448,3306.9,3305.8,0.9766234]
[1768723610596,1.00917448,3306.8,3305.8,0.9766234]
[1768723610799,0.13423382,3307.2,3305.8,0.9766234]
[1768723611003,1.00943122,3307.1,3305.8,0.9766234]
[1768723611203,1.00943122,3307.0,3305.8,0.9766234]
[1768723611397,1.00943122,3306.9,3305.8,0.9766234]
[1768723611602,1.00943122,3306.8,3305.8,0.9766234]
[1768723611810,0.13423382,3307.2,3305.8,0.9766234]
[1768723612002,1.00974363,3307.1,3305.8,0.9766234]
[1768723612202,1.00974363,3307.0,3305.8,0.9766234]
[1768723612402,1.00974363,3306.9,3305.8,0.9766234]
[1768723612597,1.00974363,3306.8,3305.8,0.9766234]
[1768723612809,0.13423382,3307.2,3305.8,0.9766234]
[1768723613008,1.0099809,3307.1,3305.8,0.9766234]
[1768723613306,1.0099809,3307.0,3305.8,0.9766234]
[1768723613492,1.0099809,3306.9,3305.8,0.9766234]
[1768723613694,1.0099809,3306.8,3305.8,0.9766234]
[1768723613899,0.13423382,3307.2,3305.8,0.9766234]
[1768723614102,1.00819818,3307.1,3305.8,0.9766234]
[1768723614308,1.00819818,3307.0,3305.8,0.9766234]
[1768723614505,1.00819818,3306.9,3305.8,0.9766234]
[1768723614699,1.00819818,3306.8,3305.8,0.9766234]
[1768723614899,0.13423382,3307.2,3305.8,0.9766234]
[1768723615100,1.0081951,3307.1,3305.8,0.9766234]
[1768723615304,1.0081951,3307.0,3305.8,1.11713686]
[1768723615608,1.0081951,3306.9,3305.8,1.11713686]
[1768723615809,1.0081951,3306.8,3305.8,1.11713686]
[1768723615998,0.13423382,3307.2,3305.8,1.11713686]
[1768723616198,1.00818961,3307.1,3305.8,1.11713686]
[1768723616402,1.00818961,3307.0,3305.8,1.11713686]
[1768723616608,1.00818961,3306.9,3305.8,1.11713686]
[1768723616909,1.00818961,3306.8,3305.8,1.11713686]